bitfinex/quotes_SOLUSD_20260213
["timestamp","ask_amount","ask_price","bid_price","bid_amount"]
[1770953528607,22.53290021,79.52,79.483,0.91319111]
[1770953528916,22.53290021,79.52,79.49,10.87051994]
[1770953529114,12.57557138,79.52,79.491,0.91319111]
[1770953529708,0.93994441,79.528,79.493,0.91319111]
[1770953530682,0.93994441,79.528,79.352,27.80328207]
[1770953530683,0.93958617,79.519,79.494,57.62]
[1770953531899,9.95732883,79.52,79.462,31.4613622]
[1770953531900,0.93940447,79.509,79.47,9.95732883]
[1770953532203,0.93940447,79.509,79.463,0.91319111]
[1770953532204,9.95732883,79.49,79.463,0.91319111]
[1770953532507,0.93940447,79.469,79.443,50.98]
[1770953532700,0.93940447,79.469,79.438,50.98]
[1770953533216,0.93940447,79.469,79.44,9.95732883]
[1770953533392,0.93925584,79.517,79.461,0.91319111]
[1770953533591,0.93925584,79.517,79.49,9.95732883]
[1770953533792,0.93908992,79.529,79.491,0.91319111]
[1770953533999,0.93908992,79.529,79.5,9.95732883]
[1770953534390,13.51313235,79.529,79.5,9.95732883]
[1770953534592,12.57330453,79.534,79.501,0.91319111]
[1770953535108,0.93908992,79.542,79.51,9.95732883]
[1770953535288,0.93908992,79.542,79.473,100.66244984]
[1770953535289,0.93892301,79.519,79.482,12.58137156]
[1770953535489,0.93892301,79.519,79.486,57.66]
[1770953536395,13.51466689,79.519,79.485,57.68]
[1770953536702,0.93861725,79.509,79.472,0.91319111]
[1770953536902,0.93861725,79.509,79.48,9.95732883]
[1770953538120,0.93861725,79.509,79.474,0.91319111]
[1770953538411,0.9384661,79.519,79.49,9.95732883]
[1770953538584,12.57481488,79.525,79.491,58.59319111]
[1770953538784,12.57481488,79.525,79.491,57.68]
[1770953539000,12.57481488,79.525,79.492,0.91319111]
[1770953539605,0.9384661,79.528,79.492,0.91319111]
[1770953540685,22.53131731,79.53,79.493,12.579724]
[1770953540686,0.93798349,79.526,79.493,12.579724]
[1770953540910,0.93798349,79.526,79.493,70.239724]
[1770953541104,9.95732883,79.52,79.492,0.91319111]
[1770953541281,0.93798349,79.526,79.492,0.91319111]
[1770953542087,0.93783214,79.524,79.492,0.91319111]
[1770953542501,12.57466205,79.525,79.463,0.91319111]
[1770953542502,0.93783214,79.499,79.463,0.91319111]
[1770953542804,0.93783214,79.499,79.464,57.64]
[1770953543001,10.89501429,79.49,79.464,57.64]
[1770953543594,0.93768546,79.489,79.455,57.64]
[1770953543994,0.93768546,79.489,79.455,58.55319111]
[1770953544201,12.58051529,79.488,79.456,0.91319111]
[1770953544605,9.95732883,79.49,79.456,0.91319111]
[1770953544795,9.95732883,79.49,79.456,58.55319111]
[1770953544996,9.95732883,79.49,79.456,57.64]
[1770953545220,9.95732883,79.49,79.457,0.91319111]
[1770953545429,9.95732883,79.49,79.458,0.91319111]
[1770953545713,0.93740033,79.509,79.471,0.91319111]
[1770953546720,12.575769,79.518,79.481,0.91319111]
[1770953547096,0.93712143,79.509,79.471,0.91319111]
[1770953547285,0.93712143,79.489,79.45,10.87051994]
[1770953547491,9.95732883,79.48,79.451,57.6]
[1770953548211,9.95732883,79.48,79.45,0.91319111]
[1770953548410,9.95732883,79.47,79.44,0.91319111]
[1770953548611,0.93698006,79.469,79.44,0.91319111]
[1770953548807,0.93698006,79.469,79.441,12.58795835]
[1770953549007,12.58368148,79.468,79.44,0.91319111]
[1770953549308,0.93685619,79.467,79.436,12.58870545]
[1770953550316,0.93685619,79.467,79.437,0.91319111]
[1770953550498,0.93685619,79.467,79.44,9.95732883]
[1770953551016,0.93685619,79.467,79.441,12.58795835]
[1770953552110,0.93685619,79.467,79.44,22.54531368]
[1770953552918,12.58273944,79.474,79.441,0.92159956]
[1770953553118,0.89902205,79.474,79.443,0.92159956]
[1770953553419,13.48165342,79.479,79.443,0.92159956]
[1770953553718,170.2027719,80.615,79.461,0.91586761]
[1770953553719,10.85704237,79.5,79.461,0.91586761]
[1770953553924,0.89971354,79.5,79.47,9.95732883]
[1770953554421,0.89971354,79.499,79.47,9.95732883]
[1770953554803,0.89971354,79.499,79.461,0.91586761]
[1770953555200,0.89971354,79.489,79.448,12.58684925]
[1770953555406,0.89971354,79.489,79.45,9.94593931]
[1770953555722,0.89971354,79.489,79.448,12.58684925]
[1770953556024,0.89971354,79.479,79.448,12.58684925]
[1770953556820,0.89971354,79.479,79.441,12.58788727]
[1770953557024,0.89971354,79.479,79.441,13.50375488]
[1770953557200,0.89971354,79.477,79.441,13.50375488]
[1770953557400,0.89971354,79.477,79.442,0.91586761]
[1770953559010,0.89971354,79.469,79.441,0.91586761]
[1770953559615,0.89971354,79.469,79.442,12.5877999]
[1770953560812,0.89971354,79.468,79.438,12.58836628]
[1770953561221,0.89971354,79.468,79.439,0.91586761]
[1770953561521,13.48181173,79.478,79.442,0.91586761]
[1770953561722,0.89971354,79.477,79.442,0.91586761]
[1770953567534,12.58241481,79.476,79.444,0.91586761]
[1770953568034,13.48212835,79.476,79.444,0.91586761]
[1770953568624,12.57909103,79.497,79.461,0.91586761]
[1770953568931,9.94593931,79.49,79.454,57.66]
[1770953569131,0.89971354,79.479,79.449,57.66]
[1770953570026,0.89971354,79.479,79.449,58.57586761]
[1770953570834,0.89971354,79.477,79.449,57.66]
[1770953572135,0.89971354,79.499,79.451,0.91586761]
[1770953572312,0.89971354,79.499,79.461,0.91586761]
[1770953572514,0.89971354,79.496,79.461,0.91586761]
[1770953573014,0.89971354,79.494,79.462,12.58463164]
[1770953573214,0.89971354,79.494,79.463,0.91586761]
[1770953575037,0.89971354,79.492,79.463,0.91586761]
[1770953575423,0.89971354,79.492,79.46,9.94593931]
[1770953575424,0.89971354,79.492,79.465,0.91586761]
[1770953576727,0.89971354,79.492,79.464,12.5843149]
[1770953576728,0.89971354,79.509,79.471,0.91586761]
[1770953576925,13.47690605,79.509,79.471,0.91586761]
[1770953577117,0.89971354,79.508,79.473,0.91586761]
[1770953577533,0.89971354,79.508,79.474,0.91586761]
[1770953577751,0.89971354,79.508,79.481,0.91586761]
[1770953578617,12.575769,79.518,79.481,0.91586761]
[1770953578824,0.89971354,79.517,79.481,0.91586761]
[1770953579149,0.89971354,79.515,79.481,13.49736629]
[1770953579351,0.89971354,79.515,79.482,0.91586761]
[1770953580420,12.57608531,79.516,79.47,57.76]
[1770953580421,0.89971354,79.509,79.47,57.76]
[1770953581261,0.90812928,79.507,79.471,12.58320645]
[1770953581750,0.90812928,79.499,79.471,12.58320645]
[1770953582152,0.90812928,79.499,79.464,12.58429259]
[1770953582447,0.90812928,79.498,79.464,12.58429259]
[1770953582621,0.90812928,79.507,79.465,0.88623732]
[1770953582824,0.90812928,79.507,79.471,0.88623732]
[1770953583446,0.90812928,79.499,79.471,0.88623732]
[1770953583636,0.90812928,79.499,79.464,13.47046109]
[1770953584244,0.90812928,79.499,79.417,5.36086188]
[1770953584245,0.90812928,79.479,79.446,12.58716612]
[1770953584449,9.94593931,79.5,79.461,0.88623732]
[1770953584652,0.90812928,79.503,79.471,0.88623732]
[1770953584952,12.57766709,79.506,79.471,0.88623732]
[1770953585249,0.90812928,79.505,79.471,0.88623732]
[1770953585951,12.57798349,79.504,79.472,12.58304811]
[1770953586144,0.90812928,79.503,79.473,0.88623732]
[1770953587050,0.90812928,79.499,79.47,57.82]
[1770953587357,0.90812928,79.499,79.472,12.58304811]
[1770953589846,0.90812928,79.497,79.47,57.82]
[1770953590247,0.90812928,79.489,79.47,57.82]
[1770953590448,0.90812928,79.489,79.464,12.58430081]
[1770953591141,0.90812928,79.489,79.459,12.58510678]
[1770953591529,0.90812928,79.489,79.459,13.4713441]
[1770953591732,0.90812928,79.489,79.46,0.88623732]
[1770953592232,0.90812928,79.489,79.461,12.58479002]
[1770953592833,0.90812928,79.489,79.461,13.47102734]
[1770953593034,0.90812928,79.489,79.462,0.88623732]
[1770953593230,12.58051529,79.488,79.456,0.88623732]
[1770953593638,0.90812928,79.487,79.456,0.88623732]
[1770953593838,0.90812928,79.496,79.461,0.88623732]
[1770953594039,9.94593931,79.5,79.461,0.88623732]
[1770953594040,0.90812928,79.494,79.461,0.88623732]
[1770953595032,0.90812928,79.494,79.462,12.58463164]
[1770953595255,0.90812928,79.494,79.463,0.88623732]
[1770953596255,35.74,79.498,79.471,0.88623732]
[1770953596553,12.5773507,79.508,79.471,0.88623732]
[1770953596751,0.90812928,79.507,79.471,0.88623732]
[1770953598355,0.90812928,79.507,79.473,0.88623732]
[1770953598663,12.57766709,79.506,79.473,0.88623732]
[1770953599354,0.90812928,79.505,79.473,0.88623732]
[1770953599564,12.57766709,79.506,79.473,0.88623732]
[1770953600271,0.90812928,79.509,79.473,0.88623732]
[1770953602154,12.5773507,79.508,79.474,12.58273145]
[1770953602347,0.90812928,79.507,79.475,0.88623732]
[1770953603460,13.4845749,79.514,79.48,9.94593931]
[1770953603660,12.57584401,79.518,79.481,0.88623732]
[1770953603862,0.90812928,79.536,79.5,9.94593931]
[1770953604163,0.90812928,79.536,79.501,0.88623732]
[1770953604548,0.90812928,79.543,79.501,0.88623732]
[1770953604745,0.90812928,79.543,79.511,0.88623732]
[1770953605540,0.90812928,79.55,79.513,0.88623732]
[1770953605752,0.90812928,79.539,79.505,0.88623732]
[1770953605957,0.90812928,79.539,79.502,31.44548667]
[1770953605958,0.90812928,79.546,79.511,0.88623732]
[1770953607162,0.90812928,79.539,79.502,0.88623732]
[1770953608063,0.90812928,79.539,79.504,0.88623732]
[1770953609261,9.94593931,79.53,79.495,12.5792923]
[1770953609468,35.88,79.529,79.495,12.5792923]
[1770953609661,0.90812928,79.528,79.495,12.5792923]
[1770953609965,0.90812928,79.519,79.489,0.88623732]
[1770953610146,9.94593931,79.52,79.489,0.88623732]
[1770953610147,0.90812928,79.516,79.489,0.88623732]
[1770953610861,0.87166296,79.536,79.501,0.8951683]
[1770953612259,12.57268193,79.538,79.5,9.94593931]
[1770953612260,0.87166296,79.534,79.503,0.8951683]
[1770953614947,0.93011849,79.532,79.504,12.57798349]
[1770953616055,0.93005015,79.529,79.496,0.88871766]
[1770953618280,0.92991871,79.527,79.497,0.88871766]
[1770953618869,0.92984651,79.519,79.486,12.58076041]
[1770953619249,0.92984651,79.519,79.487,0.88871766]
[1770953620965,0.92984651,79.519,79.471,57.68]
[1770953620966,0.92972138,79.499,79.468,13.47238362]
[1770953621165,0.92972138,79.499,79.468,0.88871766]
[1770953621580,0.92972138,79.489,79.468,0.88871766]
[1770953622075,0.92965994,79.506,79.48,4.17441212]
[1770953622263,0.92965994,79.506,79.481,0.88871766]
[1770953622794,0.92965994,79.506,79.468,44.04281833]
[1770953622795,0.92965994,79.506,79.471,0.88871766]
[1770953622958,35.96,79.516,79.463,0.88871766]
[1770953622959,12.5789328,79.498,79.463,0.88871766]
[1770953623151,0.92959084,79.497,79.463,0.88871766]
[1770953623780,0.92953374,79.496,79.463,0.88871766]
[1770953623971,0.92953374,79.496,79.471,0.88871766]
[1770953625763,0.92943319,79.505,79.473,0.88871766]
[1770953629398,0.92926316,79.504,79.475,0.88871766]
[1770953633867,0.92901386,79.502,79.475,0.88871766]
[1770953634189,0.92901386,79.502,79.476,12.58241481]
[1770953635588,0.92901386,79.502,79.476,0.88871766]
[1770953635783,0.92891044,79.5,79.47,4.17441212]
[1770953635994,0.92891044,79.489,79.457,0.88871766]
[1770953636289,5.10332256,79.5,79.461,0.88871766]
[1770953636585,0.92891044,79.499,79.461,0.88871766]
[1770953638878,0.92876215,79.497,79.463,0.88871766]
[1770953640478,4.17441212,79.49,79.463,0.88871766]
[1770953640788,0.85464568,79.489,79.463,0.88871766]
[1770953640989,0.85464568,79.479,79.451,12.58637399]
[1770953641169,0.85464568,79.479,79.415,50.36809743]
[1770953641170,0.85464568,79.469,79.437,12.58859221]
[1770953641375,0.85464568,79.469,79.438,0.91081185]
[1770953641986,0.85464568,79.469,79.441,0.91081185]
[1770953642872,0.85464568,79.469,79.437,12.58859221]
[1770953642873,0.85464568,79.459,79.437,12.58859221]
[1770953643076,0.85464568,79.459,79.437,13.49940406]
[1770953643278,0.85464568,79.459,79.438,0.91081185]
[1770953643485,4.17441212,79.46,79.438,0.91081185]
[1770953643486,0.85464568,79.467,79.438,0.91081185]
[1770953644069,4.17441212,79.47,79.441,0.91081185]
[1770953644273,0.85464568,79.475,79.441,0.91081185]
[1770953644697,12.58273145,79.474,79.441,0.91081185]
[1770953644997,0.85464568,79.467,79.441,0.91081185]
[1770953645181,0.85464568,79.467,79.442,12.5877999]
[1770953645576,0.85464568,79.467,79.442,13.49861175]
[1770953645879,0.85464568,79.467,79.443,0.91081185]
[1770953646381,0.85464568,79.467,79.437,0.91081185]
[1770953646773,0.85464568,79.459,79.431,12.58949099]
[1770953647482,0.85464568,79.459,79.428,0.91081185]
[1770953647483,0.85464568,79.457,79.429,0.91081185]
[1770953647680,0.85464568,79.463,79.431,0.91081185]
[1770953647877,0.85464568,79.469,79.431,0.91081185]
[1770953648486,0.85464568,79.465,79.431,0.91081185]
[1770953649196,0.85464568,79.465,79.433,0.91081185]
[1770953650792,0.85464568,79.478,79.45,4.17441212]
[1770953650992,12.58201658,79.479,79.451,0.91081185]
[1770953651387,0.85464568,79.484,79.434,44.06173678]
[1770953651388,0.85464568,79.491,79.461,0.91081185]
[1770953651595,0.85464568,79.498,79.461,0.91081185]
[1770953652095,36.06,79.515,79.481,0.91081185]
[1770953652304,0.85464568,79.509,79.481,0.91081185]
[1770953652904,0.85464568,79.507,79.481,0.91081185]
[1770953653284,4.17441212,79.51,79.483,0.91081185]
[1770953654506,0.85464568,79.509,79.483,0.91081185]
[1770953655410,0.85464568,79.499,79.472,0.91081185]
[1770953659103,0.85464568,79.499,79.451,31.46566784]
[1770953659104,0.85464568,79.489,79.457,0.91081185]
[1770953659900,4.17441212,79.48,79.457,0.91081185]
[1770953660187,0.85464568,79.479,79.451,0.91081185]
[1770953661198,12.58209819,79.478,79.451,0.91081185]
[1770953661597,0.85464568,79.477,79.451,0.91081185]
[1770953663304,0.85464568,79.477,79.453,0.91081185]
[1770953664606,12.58241481,79.476,79.453,0.91081185]
[1770953666706,0.85464568,79.477,79.454,12.58589875]
[1770953666893,0.85464568,79.482,79.455,0.91081185]
[1770953667807,0.85464568,79.479,79.447,13.49780129]
[1770953668006,0.85464568,79.469,79.447,12.58698944]
[1770953668215,0.85464568,79.469,79.441,0.91081185]
[1770953668409,0.85464568,79.468,79.442,0.91081185]
[1770953669107,0.85464568,79.468,79.437,12.58855695]
[1770953669286,12.58360266,79.469,79.416,57.34]
[1770953669287,0.85464568,79.459,79.427,12.59010242]
[1770953669490,0.85464568,79.449,79.421,0.91081185]
[1770953669908,0.85464568,79.468,79.431,0.91081185]
[1770953670094,12.58360266,79.469,79.441,0.91081185]
[1770953670697,12.58291597,79.473,79.443,0.92466348]
[1770953671695,13.44524181,79.473,79.443,0.92466348]
[1770953671901,4.17441212,79.47,79.443,0.92466348]
[1770953672300,0.86232584,79.472,79.443,0.92466348]
[1770953673598,0.86931596,79.47,79.443,0.92466348]
[1770953673798,0.86931596,79.469,79.443,0.92466348]
[1770953674712,0.86931596,79.469,79.436,0.86700327]
[1770953674894,0.86931596,79.449,79.421,0.86700327]
[1770953675099,0.86931596,79.449,79.4,0.2]
[1770953675100,0.86931596,79.449,79.415,0.86700327]
[1770953675818,5.04372808,79.44,79.415,0.86700327]
[1770953676018,0.86931596,79.439,79.4,0.2]
[1770953676203,0.86931596,79.429,79.401,0.86700327]
[1770953677698,13.45933459,79.428,79.402,12.5941412]
[1770953677909,13.45933459,79.428,79.403,0.86700327]
[1770953680705,31.47056036,79.44,79.405,0.86700327]
[1770953680706,0.86931596,79.435,79.405,0.86700327]
[1770953681029,0.86931596,79.439,79.411,0.86700327]
[1770953681325,0.86931596,79.429,79.404,13.46082725]
[1770953681920,0.86931596,79.429,79.405,0.86700327]
[1770953682909,0.86931596,79.429,79.406,12.59350678]
[1770953683530,0.86931596,79.429,79.405,13.46054044]
[1770953684711,4.18481381,79.43,79.4,0.2]
[1770953684712,0.86931596,79.419,79.4,0.2]
[1770953684917,4.18481381,79.42,79.4,0.2]
[1770953684918,0.86931596,79.417,79.4,0.2]
[1770953688405,12.59008388,79.428,79.401,0.86700327]
[1770953688618,35.65513396,79.44,79.401,0.86700327]
[1770953688619,12.58852962,79.438,79.401,0.86700327]
[1770953688815,4.18481381,79.44,79.401,0.86700327]
[1770953689021,0.86931596,79.445,79.401,0.86700327]
[1770953689212,4.18481381,79.44,79.401,0.86700327]
[1770953689413,0.86931596,79.439,79.401,0.86700327]
[1770953690518,0.86931596,79.439,79.403,0.86700327]
[1770953690720,4.18481381,79.43,79.403,0.86700327]
[1770953690926,0.86931596,79.429,79.403,0.86700327]
[1770953691419,4.18481381,79.43,79.403,0.86700327]
[1770953692609,5.05412977,79.43,79.405,0.86700327]
[1770953693036,0.86931596,79.429,79.404,12.59382398]
[1770953693532,0.86931596,79.428,79.4,0.2]
[1770953693823,12.58986012,79.429,79.4,0.2]
[1770953693824,0.86931596,79.419,79.4,0.2]
[1770953694021,5.05412977,79.41,79.4,0.2]
[1770953694220,0.86931596,79.409,79.39,0.2]
[1770953694534,0.86931596,79.408,79.39,0.2]
[1770953694720,0.86931596,79.408,79.37,0.2]
[1770953694721,0.86931596,79.399,79.37,0.2]
[1770953694924,0.69382888,79.379,79.353,0.86700327]
[1770953695303,0.69382888,79.389,79.361,12.60064767]
[1770953695530,0.69382888,79.389,79.36,1.06700327]
[1770953695531,4.18481381,79.38,79.36,1.06700327]
[1770953695830,4.18481381,79.38,79.36,0.2]
[1770953696530,0.69293699,79.379,79.36,0.2]
[1770953696825,4.18481381,79.38,79.361,0.86700327]
[1770953697234,0.69205194,79.369,79.34,0.2]
[1770953697524,4.18481381,79.36,79.34,1.06700327]
[1770953698128,4.18481381,79.35,79.34,1.06700327]
[1770953698326,4.18481381,79.36,79.34,1.06700327]
[1770953699712,36.26,79.37,79.32,4.38481381]
[1770953699713,0.48942883,79.349,79.32,1.06700327]
[1770953699912,4.18481381,79.34,79.32,0.2]
[1770953700629,4.18481381,79.34,79.32,1.04656512]
[1770953700823,0.86710457,79.379,79.333,0.84656512]
[1770953701024,4.18481381,79.37,79.332,44.11838853]
[1770953701226,0.86710457,79.369,79.332,44.11838853]
[1770953701439,4.18481381,79.38,79.321,57.06]
[1770953701440,0.86710457,79.359,79.323,12.60668406]
[1770953702933,0.86710457,79.359,79.325,12.60636621]
[1770953703242,0.86710457,79.357,79.326,0.84656512]
[1770953703742,4.18481381,79.37,79.331,0.84656512]
[1770953703936,0.86710457,79.359,79.331,0.84656512]
[1770953704110,0.86710457,79.349,79.32,12.80707814]
[1770953705518,0.86710457,79.347,79.32,12.80707814]
[1770953706038,0.86710457,79.347,79.321,0.84656512]
[1770953706243,4.18481381,79.36,79.321,0.84656512]
[1770953706843,0.86710457,79.359,79.321,0.84656512]
[1770953707437,36.24,79.373,79.32,48.50979411]
[1770953707438,0.86710457,79.369,79.331,0.84656512]
[1770953707622,0.86710457,79.369,79.333,0.84656512]
[1770953707935,4.18481381,79.36,79.333,0.84656512]
[1770953708248,0.86710457,79.378,79.333,0.84656512]
[1770953708419,0.86710457,79.378,79.341,0.84656512]
[1770953708717,0.86710457,79.378,79.332,44.11838853]
[1770953708718,4.18481381,79.39,79.351,0.84656512]
[1770953709121,0.86710457,79.379,79.346,0.84656512]
[1770953709916,0.86710457,79.379,79.345,57.12]
[1770953709917,0.86710457,79.379,79.348,0.84656512]
[1770953711939,0.86710457,79.39,79.35,0.84656512]
[1770953712139,5.05191838,79.39,79.351,0.84656512]
[1770953713549,5.05191838,79.39,79.353,0.84656512]
[1770953715943,5.05191838,79.39,79.355,0.84656512]
[1770953716137,0.86710457,79.389,79.355,0.84656512]
[1770953717130,0.86710457,79.389,79.356,44.10504561]
[1770953717332,0.86710457,79.389,79.357,0.84656512]
[1770953718338,0.86710457,79.389,79.356,44.10504561]
[1770953718339,0.86710457,79.395,79.361,0.84656512]
[1770953719353,0.86710457,79.395,79.363,0.84656512]
[1770953719941,4.18481381,79.4,79.363,0.84656512]
[1770953720142,0.86710457,79.399,79.363,0.84656512]
[1770953720852,0.86710457,79.389,79.363,0.84656512]
[1770953721357,0.86710457,79.389,79.365,0.84656512]
[1770953723545,0.86710457,79.389,79.366,12.59985384]
[1770953723853,0.86710457,79.389,79.366,13.44641896]
[1770953724652,0.86710457,79.389,79.366,0.84656512]
[1770953725959,0.86710457,79.397,79.366,0.84656512]
[1770953726742,0.86710457,79.397,79.368,0.84656512]
[1770953727144,4.18481381,79.39,79.368,0.84656512]
[1770953727756,0.86710457,79.404,79.368,0.84656512]
[1770953728055,0.86710457,79.399,79.368,0.84656512]
[1770953729358,0.86710457,79.399,79.37,0.84656512]
[1770953730159,0.86710457,79.389,79.369,12.59937759]
[1770953730344,4.18481381,79.39,79.37,0.84656512]
[1770953730551,5.03199546,79.39,79.37,0.84656512]
[1770953731160,0.84718165,79.389,79.37,0.84656512]
[1770953731548,0.84718165,79.389,79.371,12.59906011]
[1770953733370,4.18481381,79.41,79.371,12.59906011]
[1770953733371,5.03199546,79.4,79.372,0.90681551]
[1770953733670,0.84718165,79.399,79.372,0.90681551]
[1770953734172,0.84718165,79.399,79.373,13.47407497]
[1770953734961,0.84718165,79.399,79.374,0.87533233]
[1770953736249,0.84718165,79.399,79.375,12.59842519]
[1770953737762,4.1883119,79.41,79.376,0.87533233]
[1770953738062,4.1883119,79.4,79.371,31.49765027]
[1770953738263,4.1883119,79.4,79.372,0.87533233]
[1770953739652,4.1883119,79.4,79.373,12.59874264]
[1770953739964,0.84498131,79.399,79.374,0.87533233]
[1770953741753,0.84498131,79.399,79.375,12.59842519]
[1770953742058,0.84498131,79.409,79.376,0.87533233]
[1770953745368,0.84498131,79.399,79.377,12.59810776]
[1770953745567,0.84498131,79.399,79.378,0.87533233]
[1770953749177,0.84498131,79.399,79.38,0.87533233]
[1770953750477,0.84498131,79.407,79.382,0.87533233]
[1770953750666,0.84498131,79.418,79.382,0.87533233]
[1770953751176,0.84498131,79.409,79.382,0.87533233]
[1770953753181,0.84498131,79.399,79.376,0.87533233]
[1770953754896,0.84498131,79.399,79.377,13.47344009]
[1770953758864,0.84498131,79.399,79.377,12.59810776]
[1770953759184,0.84498131,79.399,79.378,0.87533233]
[1770953759684,4.1883119,79.4,79.378,0.87533233]
[1770953759892,67.23868782,79.419,79.369,12.5992405]
[1770953759893,0.84498131,79.389,79.369,12.5992405]
[1770953760886,0.84498131,79.389,79.37,0.82814838]
[1770953761091,44.07671867,79.407,79.372,0.82814838]
[1770953761092,0.87135228,79.397,79.372,0.82814838]
[1770953761875,4.1883119,79.4,79.372,0.82814838]
[1770953762787,0.87135228,79.399,79.372,0.82814838]
[1770953763088,0.87135228,79.399,79.373,12.59874264]
[1770953763493,0.87135228,79.389,79.373,12.59874264]
[1770953764195,0.87135228,79.399,79.374,0.82814838]
[1770953765193,0.87135228,79.399,79.376,0.82814838]
[1770953766494,0.87135228,79.399,79.377,12.59810776]
[1770953769096,0.87135228,79.399,79.377,0.82814838]
[1770953769897,4.1883119,79.39,79.377,0.82814838]
[1770953770803,0.87135228,79.394,79.378,12.59794905]
[1770953772890,4.1883119,79.39,79.372,0.82814838]
[1770953777911,5.05966418,79.39,79.372,0.82814838]
[1770953778097,0.87135228,79.389,79.368,12.59947343]
[1770953778311,0.87135228,79.389,79.364,12.6001321]
[1770953778497,0.87135228,79.388,79.363,0.82814838]
[1770953778900,0.87135228,79.388,79.365,0.82814838]
[1770953780899,0.87135228,79.388,79.367,0.82814838]
[1770953782319,0.87135228,79.388,79.369,0.82814838]
[1770953782520,0.87135228,79.379,79.367,12.59965637]
[1770953784116,4.1883119,79.39,79.367,12.59965637]
[1770953784329,0.87135228,79.389,79.367,0.82814838]
[1770953785817,4.1883119,79.39,79.367,0.82814838]
[1770953786210,0.87135228,79.389,79.367,0.82814838]
[1770953787420,4.1883119,79.39,79.369,0.82814838]
[1770953788004,0.87135228,79.389,79.369,0.82814838]
[1770953795730,12.59494355,79.397,79.371,0.83584118]
[1770953796228,0.84388902,79.396,79.371,0.83584118]
[1770953797832,12.59525159,79.395,79.371,0.83584118]
[1770953798146,0.84388902,79.394,79.371,0.83584118]
[1770953799027,4.18842204,79.41,79.373,0.83584118]
[1770953799330,0.84388902,79.409,79.373,0.83584118]
[1770953800232,4.18842204,79.41,79.373,0.83584118]
[1770953800440,4.18842204,79.41,79.381,0.83584118]
[1770953801130,0.84388902,79.409,79.383,0.83584118]
[1770953801547,0.84388902,79.389,79.361,0.83584118]
[1770953801714,0.84388902,79.379,79.361,0.83584118]
[1770953802422,4.18842204,79.38,79.361,0.83584118]
[1770953802632,4.18842204,79.38,79.363,0.83584118]
[1770953803240,0.84388902,79.397,79.363,0.83584118]
[1770953803529,4.18842204,79.39,79.363,0.83584118]
[1770953804525,0.84388902,79.389,79.363,0.83584118]
[1770953805534,0.84388902,79.388,79.363,0.83584118]
[1770953805831,0.84388902,79.388,79.357,0.83584118]
[1770953806037,0.84388902,79.379,79.355,0.83584118]
[1770953806745,0.84388902,79.379,79.34,4.18842204]
[1770953806746,0.84388902,79.369,79.343,12.60348245]
[1770953807120,4.18842204,79.36,79.338,12.60429433]
[1770953807319,0.84388902,79.359,79.338,12.60429433]
[1770953807522,0.84388902,79.349,79.33,0.83584118]
[1770953808337,0.84388902,79.349,79.328,12.60586753]
[1770953808531,0.84388902,79.349,79.325,12.60636621]
[1770953809242,0.84388902,79.349,79.324,57.42]
[1770953809740,0.84388902,79.349,79.324,70.02641491]
[1770953810336,0.84388902,79.349,79.324,12.60641491]
[1770953810739,4.18842204,79.35,79.32,0.2]
[1770953810740,0.84388902,79.339,79.32,0.2]
[1770953810932,0.84388902,79.329,79.32,0.2]
[1770953811925,0.84388902,79.351,79.321,0.83584118]
[1770953812242,12.59779034,79.379,79.321,0.83584118]
[1770953812243,0.84388902,79.349,79.322,0.83584118]
[1770953812649,0.84388902,79.355,79.322,0.83584118]
[1770953812854,0.84388902,79.355,79.324,0.83584118]
[1770953813148,0.84388902,79.349,79.324,0.83584118]
[1770953814648,0.84388902,79.349,79.321,0.83584118]
[1770953814947,0.84388902,79.349,79.322,0.83584118]
[1770953815644,12.6027121,79.348,79.322,0.83584118]
[1770953815863,0.84388902,79.347,79.322,0.83584118]
[1770953817345,12.60302976,79.346,79.322,0.83584118]
[1770953817652,0.84388902,79.345,79.322,0.83584118]
[1770953818452,0.84388902,79.356,79.323,0.83584118]
[1770953818747,0.84388902,79.362,79.331,0.83584118]
[1770953818934,12.60064767,79.361,79.331,0.83584118]
[1770953819138,0.84388902,79.359,79.331,0.83584118]
[1770953819328,0.84388902,79.357,79.331,0.83584118]
[1770953819939,4.18842204,79.35,79.331,0.83584118]
[1770953821247,4.97519283,79.35,79.331,0.83584118]
[1770953821654,4.97519283,79.34,79.321,0.84843339]
[1770953821854,0.78677079,79.339,79.321,0.84843339]
[1770953822846,4.18842204,79.34,79.322,0.84843339]
[1770953824971,4.18842204,79.34,79.323,12.60668406]
[1770953825257,4.18842204,79.35,79.324,0.84843339]
[1770953825755,4.18842204,79.36,79.324,0.84843339]
[1770953826239,4.97519283,79.36,79.326,0.84843339]
[1770953826439,0.78677079,79.359,79.326,0.84843339]
[1770953827843,4.18842204,79.34,79.325,12.60636621]
[1770953828267,0.78677079,79.351,79.326,0.84843339]
[1770953828562,4.18842204,79.34,79.325,13.4547996]
[1770953828863,0.78677079,79.339,79.304,12.60960715]
[1770953829046,4.18842204,79.32,79.304,12.60960715]
[1770953829244,0.78677079,79.319,79.301,0.84843339]